bitfinex-derivatives/quotes_ETHF0:USTF0_20260201
["timestamp","ask_amount","ask_price","bid_price","bid_amount"]
[1769960526549,0.46494012,2311.0,2308.9,0.48133515]
[1769960526751,0.4688567,2311.0,2309.1,0.48133515]
[1769960527047,4.3376,2310.2,2309.1,0.48133515]
[1769960527350,0.47125482,2310.2,2309.0,3.903]
[1769960527542,4.3376,2309.5,2309.0,4.39815607]
[1769960527938,0.47125482,2310.9,2309.1,0.49515607]
[1769960528646,0.00391658,2311.0,2309.1,0.49515607]
[1769960528947,0.00391658,2311.0,2309.4,0.49515607]
[1769960529545,0.00391658,2311.0,2309.5,0.49515607]
[1769960530051,0.00391658,2311.0,2309.7,0.49515607]
[1769960530252,7.37000042,2312.1,2309.0,3.903]
[1769960530253,0.47125482,2312.1,2310.0,0.49515607]
[1769960530547,0.47125482,2312.1,2310.2,0.49515607]
[1769960530941,2.543,2312.8,2310.3,0.49515607]
[1769960530942,0.47125482,2312.8,2310.3,0.49515607]
[1769960531152,0.47481563,2312.8,2310.3,0.49515607]
[1769960531442,0.00356081,2312.8,2311.0,0.71170607]
[1769960531751,0.00356081,2312.8,2311.6,0.49515607]
[1769960532045,0.00356081,2312.8,2311.8,0.49515607]
[1769960532446,0.47125482,2314.0,2311.9,0.49515607]
[1769960532745,0.47125482,2314.1,2312.3,0.49515607]
[1769960532948,0.47125482,2314.1,2311.9,0.49515607]
[1769960533251,0.47125482,2313.6,2311.5,0.49515607]
[1769960533439,0.47125482,2313.1,2311.1,0.49515607]
[1769960534243,0.00513707,2313.6,2311.1,0.49515607]
[1769960534442,0.47639189,2313.6,2311.6,0.49515607]
[1769960534643,0.47639189,2313.6,2311.7,0.49515607]
[1769960535152,0.47125482,2314.4,2312.4,0.49515607]
[1769960535553,0.47125482,2314.2,2312.4,0.49515607]
[1769960536041,0.47125482,2313.7,2311.1,0.49515607]
[1769960536244,0.47125482,2313.7,2311.2,0.49515607]
[1769960536645,0.47125482,2313.7,2311.3,0.49515607]
[1769960536846,0.47125482,2313.3,2311.3,0.49515607]
[1769960537952,0.47125482,2313.3,2311.0,0.50070684]
[1769960538143,0.47125482,2312.8,2311.0,0.50070684]
[1769960541659,0.47125482,2313.0,2311.0,0.50070684]
[1769960547452,0.47125482,2313.0,2312.2,0.06290042]
[1769960547964,0.47125482,2313.0,2311.6,0.49515607]
[1769960548151,0.47125482,2313.0,2311.0,0.50070684]
[1769960549762,0.43131956,2312.7,2310.6,0.49515607]
[1769960550457,0.43131956,2313.1,2310.6,0.49515607]
[1769960550959,0.43131956,2313.1,2310.7,0.49515607]
[1769960551351,0.43284828,2313.0,2310.7,0.49515607]
[1769960552255,0.43284828,2312.9,2310.7,0.49515607]
[1769960552858,0.43284828,2312.9,2310.9,0.49515607]
[1769960553559,0.43392222,2313.3,2310.9,0.49515607]
[1769960553864,2.82096103,2313.7,2310.9,0.49515607]
[1769960554058,0.43392222,2313.7,2310.9,0.49515607]
[1769960554254,0.43392222,2313.0,2311.1,0.49515607]
[1769960554454,0.43392222,2312.9,2311.1,0.49515607]
[1769960554659,0.43762708,2312.8,2310.7,0.49515607]
[1769960554864,0.43762708,2312.6,2310.7,0.49515607]
[1769960555362,0.43762708,2312.6,2310.6,0.00549147]
[1769960555363,0.43762708,2311.8,2310.6,0.00549147]
[1769960555558,0.43762708,2311.8,2309.2,15.44580608]
[1769960555559,0.43762708,2311.6,2309.2,10.36930929]
[1769960555763,0.43762708,2311.5,2309.4,0.49515607]
[1769960555963,0.43762708,2311.4,2309.5,0.49515607]
[1769960556158,0.43762708,2311.2,2309.5,0.49515607]
[1769960556369,0.43762708,2311.0,2309.5,0.49515607]
[1769960556561,0.43762708,2310.9,2309.5,0.50074446]
[1769960556867,0.4377814,2310.7,2309.1,0.49515607]
[1769960558067,0.4377814,2310.7,2309.1,0.49909373]
[1769960558463,0.4377814,2310.7,2308.2,5.04243131]
[1769960558464,2.82464811,2310.2,2307.7,3.86889018]
[1769960558664,2.82464811,2310.2,2307.6,2.53749679]
[1769960558665,0.4360664,2308.8,2307.3,0.56095937]
[1769960558870,0.4360664,2308.2,2306.9,0.49805895]
[1769960559072,0.48141274,2308.1,2306.1,3.897]
[1769960559369,0.4853546,2308.1,2306.1,3.90196824]
[1769960560063,0.4853546,2308.1,2306.1,0.00496824]
[1769960561064,0.00394186,2308.1,2306.2,0.49805895]
[1769960561473,0.00394186,2308.1,2306.4,0.49805895]
[1769960561667,0.00394186,2308.1,2306.6,0.49805895]
[1769960561969,0.4853546,2308.1,2306.7,0.49805895]
[1769960563467,0.00394186,2308.1,2306.7,0.49805895]
[1769960564169,0.4853546,2308.1,2306.7,0.49805895]
[1769960565766,0.00394186,2308.1,2306.7,0.49805895]
[1769960565971,0.47158307,2309.0,2306.7,0.49805895]
[1769960566368,0.47158307,2309.0,2306.9,0.45523857]
[1769960566771,0.47158307,2309.0,2307.1,0.45523857]
[1769960567270,0.47492037,2309.0,2307.1,0.45523857]
[1769960568177,0.47492037,2309.0,2306.9,0.45523857]
[1769960568972,0.47492037,2309.0,2306.1,0.46020681]
[1769960568973,0.47158307,2308.8,2306.1,0.46020681]
[1769960574691,0.47158307,2308.8,2306.2,0.45523857]
[1769960576491,3.37258307,2308.9,2306.2,0.45523857]
[1769960578494,0.47158307,2308.8,2306.2,0.45523857]
[1769960580490,0.47158307,2308.8,2306.4,0.45523857]
[1769960582592,0.0033373,2309.0,2306.4,0.45523857]
[1769960582800,0.47158307,2308.9,2306.6,0.45523857]
[1769960583301,0.0033373,2309.0,2306.6,0.45523857]
[1769960584097,0.47492037,2309.0,2306.8,0.45523857]
[1769960586001,0.0033373,2309.0,2306.8,0.45523857]
[1769960586203,0.0033373,2309.0,2307.0,3.03211484]
[1769960586397,0.0033373,2309.0,2307.1,0.45523857]
[1769960587004,0.0033373,2309.0,2307.4,0.45523857]
[1769960587301,13.20082114,2310.2,2307.9,0.45523857]
[1769960587302,2.85862188,2310.2,2307.9,0.45523857]
[1769960587496,2.85862188,2310.2,2307.8,2.57687627]
[1769960587497,2.85862188,2310.2,2308.1,0.49842866]
[1769960588096,2.86360144,2310.2,2308.1,0.50197963]
[1769960588298,2.38703881,2310.1,2308.1,0.50197963]
[1769960589106,2.86360144,2310.2,2308.1,0.50197963]
[1769960589305,0.47656263,2310.2,2308.1,0.50197963]
[1769960589501,0.00497956,2310.2,2308.3,0.49842866]
[1769960589705,0.48694583,2310.2,2308.3,0.49842866]
[1769960589901,0.48694583,2310.2,2308.5,0.49842866]
[1769960591005,0.00497956,2310.2,2308.5,0.49842866]
[1769960592299,0.23785241,2310.6,2308.5,0.49842866]
[1769960592507,2.38703881,2310.5,2308.5,0.49842866]
[1769960592905,2.38703881,2310.3,2308.5,0.49842866]
[1769960593311,2.39107946,2310.3,2308.5,0.49842866]
[1769960594309,0.00404065,2310.3,2308.5,0.49842866]
[1769960594510,0.23664056,2310.2,2308.5,0.49842866]
[1769960594900,0.24100791,2309.9,2308.1,0.50197963]
[1769960595113,2.62804672,2309.6,2308.1,0.00355097]
[1769960595405,0.24100791,2309.3,2307.7,0.49842866]
[1769960595613,0.23745694,2309.1,2307.6,3.901]
[1769960596610,0.23745694,2309.1,2307.6,3.90630187]
[1769960597001,0.23745694,2309.1,2307.7,0.49842866]
[1769960597809,0.23490528,2309.0,2307.6,0.50373053]
[1769960598007,2.62194409,2309.4,2307.6,0.50373053]
[1769960598310,0.23490528,2309.4,2307.6,0.50373053]
[1769960598714,0.23994449,2309.1,2307.6,0.50373053]
[1769960599308,0.23994449,2309.0,2307.6,0.50373053]
[1769960599712,2.6269833,2309.0,2307.6,0.50373053]
[1769960599907,0.23994449,2308.9,2307.6,0.50373053]
[1769960600115,2.38703881,2309.0,2307.6,0.50373053]
[1769960600308,0.23994449,2309.3,2307.6,0.50373053]
[1769960600614,2.38703881,2309.6,2307.6,0.50373053]
[1769960601015,2.38703881,2309.8,2307.7,0.21687]
[1769960601213,2.38703881,2309.8,2307.8,0.49842866]
[1769960601410,2.62405625,2309.9,2307.8,0.49842866]
[1769960601912,0.23701744,2309.9,2307.9,0.49842866]
[1769960602116,2.38703881,2310.1,2307.9,0.49842866]
[1769960602417,0.23701744,2310.0,2308.0,0.49842866]
[1769960603011,0.2122716,2309.8,2308.0,0.49842866]
[1769960603211,0.2122716,2309.7,2308.0,0.49842866]
[1769960604609,0.21779913,2309.5,2308.0,0.49842866]
[1769960604811,0.21779913,2309.1,2307.7,0.49842866]
[1769960605314,0.50161292,2309.5,2307.8,2.57580427]
[1769960605524,0.50161292,2309.5,2307.9,3.901]
[1769960605713,0.50161292,2309.5,2307.6,0.00530187]
[1769960605914,4.332,2309.4,2307.6,0.00530187]
[1769960606119,0.50161292,2309.3,2307.7,3.901]
[1769960606516,0.50161292,2308.9,2307.6,0.00530187]
[1769960607120,0.50197549,2308.6,2307.6,0.00530187]
[1769960607321,0.50550798,2308.6,2307.6,0.00530187]
[1769960608720,0.49723427,2308.2,2307.1,3.901]
[1769960609620,0.49723427,2308.2,2307.1,6.48202967]
[1769960609816,0.50076676,2308.6,2307.3,0.0087573]
[1769960610120,0.49900052,2309.4,2308.1,0.00522481]
[1769960610320,0.49900052,2309.4,2308.2,6.48202908]
[1769960610622,0.49900052,2309.4,2308.2,6.47680427]
[1769960610823,0.49760042,2309.2,2308.2,3.901]
[1769960611116,0.50164134,2309.2,2308.2,3.901]
[1769960611327,0.00404092,2309.2,2308.2,3.901]
[1769960611821,0.49760042,2309.5,2308.2,6.48482928]
[1769960612220,0.49760042,2309.5,2308.2,6.47680427]
[1769960612522,0.49760042,2309.0,2308.2,3.901]
[1769960612816,0.50111844,2309.0,2307.7,2.57580427]
[1769960613017,0.49420384,2308.5,2307.4,2.57580427]
[1769960613211,0.49420384,2308.5,2307.2,7.97848858]
[1769960613212,0.49420384,2308.3,2307.2,2.57580427]
[1769960613416,0.49420384,2308.3,2307.1,4.11008797]
[1769960613417,0.49420384,2308.2,2307.1,0.0052254]
[1769960614012,0.49420384,2308.2,2307.1,2.58102967]
[1769960614219,0.49420384,2308.5,2307.2,0.01481816]
[1769960614617,0.49420384,2308.5,2307.3,2.59062243]
[1769960614822,0.49343078,2308.4,2307.3,2.57580427]
[1769960615122,0.49343078,2308.4,2307.2,0.01636427]
[1769960615322,0.49343078,2308.8,2307.5,2.59216854]
[1769960615513,0.49343078,2308.8,2307.7,2.59216854]
[1769960615718,0.49343078,2308.8,2307.8,6.69180427]
[1769960616320,4.82543078,2308.4,2307.2,6.47680427]
[1769960616622,0.49343078,2308.4,2307.2,3.901]
[1769960616817,0.49315488,2308.2,2307.2,3.901]
[1769960618514,0.49314763,2308.1,2307.1,10.59902967]
[1769960618714,0.49314763,2308.1,2307.1,8.0232254]
[1769960619123,0.49323704,2308.9,2307.2,2.59294382]
[1769960619320,0.49323704,2308.8,2307.2,2.59294382]
[1769960619527,0.49323704,2308.6,2307.2,2.59294382]
[1769960619724,0.49323704,2308.6,2307.1,10.59902967]
[1769960619922,0.49323704,2308.5,2307.1,12.04658817]
[1769960620227,0.49323704,2308.5,2307.1,0.0052254]
[1769960620417,0.49323704,2308.1,2307.1,0.0052254]
[1769960621128,0.49319894,2307.7,2306.7,6.69480427]
[1769960621513,0.49319894,2308.0,2306.7,6.71202002]
[1769960621715,0.49319894,2308.3,2307.1,2.57580427]
[1769960621915,0.49319894,2308.3,2307.1,2.59302002]
[1769960622126,0.49319894,2307.8,2307.1,0.00317356]
[1769960622623,0.49319894,2307.6,2306.7,2.57580427]
[1769960622823,0.49319894,2307.6,2306.6,2.57580427]
[1769960623019,0.49319894,2307.6,2306.5,2.57580427]
[1769960623222,4.82556673,2307.5,2306.4,4.12]
[1769960623420,0.49356673,2307.5,2306.4,4.12]
[1769960623621,0.49356673,2307.3,2306.4,4.12320559]
[1769960623820,0.49785803,2307.3,2306.4,4.12320559]
[1769960624416,0.49785803,2307.3,2305.8,10.57008995]
[1769960624417,0.49386889,2307.0,2305.9,2.57580427]
[1769960624622,0.49816019,2307.3,2306.0,2.59210136]
[1769960624823,0.49816019,2307.3,2306.1,2.57580427]
[1769960625324,0.49386889,2307.0,2305.9,2.57580427]
[1769960625527,0.49386889,2307.0,2305.9,2.57979262]
[1769960626221,4.82586889,2307.0,2305.9,2.57979262]
[1769960626424,0.49386889,2306.9,2305.9,0.00398835]
[1769960626624,0.49386889,2306.7,2305.9,0.00398835]
[1769960627127,4.82586889,2306.7,2305.9,0.00398835]
[1769960627322,0.0042913,2307.3,2305.9,0.02484196]
[1769960627323,0.49159063,2307.2,2305.9,0.02484196]
[1769960627826,0.49159063,2307.2,2305.9,0.00398835]
[1769960628024,0.49159063,2306.6,2305.9,0.00398835]
[1769960628627,0.49159063,2307.0,2305.9,0.00398835]
[1769960629026,0.49159063,2307.0,2305.9,0.03598721]
[1769960629720,0.49159063,2307.0,2305.9,0.00398835]
[1769960629922,0.49138195,2306.6,2305.8,8.019]
[1769960630225,0.49138195,2306.6,2305.5,4.114]
[1769960630825,0.49138195,2306.1,2304.9,6.68880427]
[1769960631026,0.49138195,2306.1,2304.9,4.11783128]
[1769960631424,0.0042913,2307.3,2304.9,0.00483128]
[1769960631425,0.49138195,2305.7,2304.9,0.00483128]
[1769960631731,0.49138195,2305.7,2303.8,2.57580427]
[1769960631928,0.49138195,2305.2,2303.6,4.114]
[1769960632126,0.49138195,2304.9,2303.4,0.04227778]
[1769960632327,0.49138195,2304.9,2303.4,4.113]
[1769960632523,0.49138195,2304.9,2303.5,0.04227778]
[1769960632721,0.49515104,2304.9,2303.5,0.04676972]
[1769960633325,0.49515104,2304.9,2303.6,8.016]
[1769960633326,0.49138195,2304.7,2303.6,8.016]
[1769960633627,0.00376909,2304.9,2303.7,0.04235758]
[1769960633937,0.49138195,2306.7,2304.1,0.04235758]
[1769960634122,0.49138195,2306.7,2304.8,0.04235758]
[1769960634529,0.49138195,2306.1,2304.5,2.544]
[1769960634735,0.49138195,2305.9,2304.5,2.544]
[1769960634929,0.49551381,2305.9,2304.5,2.58695355]
[1769960635125,0.49138195,2305.8,2304.5,2.58695355]
[1769960635325,0.49138195,2305.7,2304.5,0.04295355]
[1769960635534,0.49138195,2306.5,2305.1,0.03882169]
[1769960636123,0.49138195,2306.3,2305.1,0.03882169]
[1769960636528,0.49138195,2306.3,2305.2,8.013]
[1769960636529,0.49542224,2306.3,2305.2,8.013]
[1769960636834,0.49542224,2306.3,2305.2,8.01641375]
[1769960637033,0.49138195,2306.2,2305.2,0.00341375]
[1769960637230,0.49138195,2306.2,2305.3,4.108]
[1769960637534,0.49138195,2308.0,2305.8,0.0298485]
[1769960637837,0.49138195,2307.2,2305.4,0.0298485]
[1769960638332,0.49138195,2307.2,2305.6,0.0298485]
[1769960638534,0.49484906,2307.2,2305.6,0.0298485]
[1769960638736,0.49138195,2307.0,2305.6,0.0298485]
[1769960638935,0.49138195,2306.9,2305.7,8.009]
[1769960639126,0.49138195,2306.9,2305.8,0.02972301]
[1769960639439,0.49484906,2307.2,2305.8,0.02972301]
[1769960640227,0.00346711,2307.2,2306.0,2.71234349]
[1769960640429,0.50201743,2308.0,2305.9,2.57580427]
[1769960640634,0.49675346,2307.8,2306.0,4.102]
[1769960641132,0.49675346,2307.2,2305.6,0.35611663]
[1769960641337,0.49675346,2307.2,2305.6,8.57917663]
[1769960641536,0.00491219,2307.2,2305.9,2.79283427]
[1769960641736,0.00491219,2307.2,2305.9,0.21703]
[1769960641933,0.49675346,2307.1,2305.6,2.57580427]
[1769960642131,0.49675346,2307.1,2305.6,0.01052794]
[1769960642331,0.49675346,2306.9,2305.6,0.01052794]
[1769960642532,0.49675346,2306.8,2305.2,0.00341375]
[1769960642826,0.49675346,2306.4,2305.2,0.00341375]
[1769960643027,0.00491219,2307.2,2305.2,0.00341375]
[1769960643028,0.49679928,2306.2,2305.2,0.00341375]
[1769960643428,0.49679928,2305.7,2304.5,6.49870628]
[1769960643633,0.49679928,2305.7,2304.6,8.003]
[1769960643840,0.49679928,2306.9,2304.6,8.0134363]
[1769960644038,0.49679928,2305.6,2304.2,0.0104363]
[1769960644238,0.49679928,2305.6,2304.1,2.57580427]
[1769960644434,0.49679928,2305.2,2304.1,0.00412769]
[1769960644633,0.00440266,2305.2,2304.2,0.0104363]
[1769960645138,3.904,2306.5,2304.4,0.00473372]
[1769960645341,0.49965057,2306.1,2304.4,0.00473372]
[1769960645637,0.49965057,2305.9,2304.2,2.57580427]
[1769960645842,0.49965057,2305.4,2304.1,0.00412769]
[1769960646236,0.49965057,2305.0,2304.1,0.00412769]
[1769960646436,4.332,2304.7,2304.1,0.00412769]
[1769960646636,4.332,2304.7,2303.6,2.58053799]
[1769960646836,0.49965057,2305.0,2303.7,8.00704954]
[1769960647039,0.49949266,2304.9,2303.7,8.002]
[1769960647239,0.49949266,2304.5,2303.3,0.00504954]
[1769960647537,0.49949266,2304.5,2303.2,8.001]
[1769960647743,4.83147341,2304.2,2303.2,8.00661378]
[1769960647943,0.49947341,2304.2,2303.2,0.00561378]
[1769960648349,0.49947341,2305.3,2303.3,0.00575174]
[1769960648541,0.49947341,2304.9,2303.3,0.00575174]
[1769960648742,4.83144141,2304.6,2303.3,0.00575174]
[1769960648935,0.49944141,2304.5,2303.3,0.00575174]
[1769960649240,0.49944141,2304.5,2303.2,8.00761378]
[1769960649440,4.83144141,2304.4,2303.2,8.00761378]
[1769960649645,0.49944141,2304.3,2303.2,8.00761378]
[1769960650343,4.332,2304.1,2303.2,8.00761378]
[1769960650544,4.332,2304.0,2303.2,8.00761378]
[1769960650746,3.9097091,2305.4,2303.2,0.00561378]
[1769960650747,4.83013666,2304.1,2303.2,0.00561378]
[1769960650941,0.49813666,2304.1,2303.2,0.00561378]
[1769960651242,3.9097091,2305.4,2303.2,0.00561378]
[1769960651243,4.83013666,2304.0,2303.2,0.00561378]
[1769960651443,4.332,2303.9,2303.2,0.00561378]
[1769960651641,0.49813666,2304.4,2303.2,0.00561378]
[1769960652045,4.332,2304.2,2303.2,0.01403902]
[1769960652345,4.83013666,2304.4,2303.3,0.00842524]
[1769960652545,4.83013666,2304.3,2303.2,0.00561378]
[1769960652746,3.9097091,2305.4,2303.2,0.00561378]
[1769960652747,0.49828933,2305.0,2303.3,0.00811988]
[1769960653044,3.9097091,2305.4,2303.3,0.00811988]
[1769960653045,0.49828933,2304.8,2303.3,0.00811988]
[1769960653242,0.49828933,2305.3,2303.6,0.00811988]
[1769960653547,0.49828933,2305.0,2303.7,4.09]
[1769960653749,0.49828933,2305.0,2303.8,0.00811988]
[1769960654039,0.49828933,2304.8,2303.6,7.996]
[1769960654240,0.0047091,2305.4,2303.7,0.00811988]
[1769960654440,0.49828933,2305.1,2303.7,0.00811988]
[1769960654847,0.50298888,2304.9,2303.7,0.00811988]
[1769960655046,4.83498888,2305.3,2303.7,0.00811988]
[1769960655344,0.50298888,2305.0,2303.7,8.00411988]
[1769960655945,0.0047091,2305.4,2303.7,8.00411988]
[1769960655946,0.50298888,2304.8,2303.7,8.00411988]
[1769960656146,0.50298888,2304.8,2303.7,7.996]
[1769960656342,0.50298888,2304.4,2303.7,7.996]
[1769960656735,4.332,2304.3,2303.2,10.57301514]
[1769960656940,0.50298888,2304.4,2303.2,10.57301514]
[1769960657636,0.50333764,2305.3,2303.6,2.57040136]
[1769960657841,0.50333764,2305.3,2303.7,2.57040136]
[1769960658143,0.50333764,2305.2,2303.7,2.57040136]
[1769960658340,0.0047091,2305.4,2303.6,3.84704654]
[1769960658341,0.50333764,2304.9,2303.6,2.57040136]
[1769960658536,0.0047091,2305.4,2303.6,2.57040136]
[1769960658742,0.50333764,2305.2,2303.8,0.00660871]
[1769960659248,4.83104492,2305.1,2303.8,0.00660871]
[1769960659542,4.332,2305.0,2303.8,0.00660871]
[1769960660243,0.0047091,2305.4,2303.8,0.00660871]
[1769960660450,0.0047091,2305.4,2304.3,2.57701007]
[1769960660644,0.0047091,2305.4,2304.4,8.00460871]
[1769960661046,0.49910356,2305.8,2304.6,0.00649144]
[1769960661348,0.49910356,2305.8,2304.4,10.56840136]
[1769960661551,0.50145811,2305.0,2304.0,2.57040136]
[1769960661747,4.332,2304.8,2303.8,10.56840136]
[1769960661954,3.907,2306.2,2304.1,0.00178234]
[1769960661955,0.50145811,2305.3,2304.1,0.00178234]
[1769960662251,0.50145811,2305.3,2304.1,2.5721837]
[1769960662446,0.34624441,2306.7,2304.3,2.57040136]
[1769960662447,0.50234928,2305.7,2304.3,2.57040136]
[1769960662747,0.50234928,2305.7,2304.2,3.84704654]
[1769960662748,0.50234928,2305.7,2304.2,2.57040136]
[1769960662946,4.83434928,2305.7,2304.3,2.57040136]
[1769960663149,4.83833629,2305.7,2304.3,2.57040136]
[1769960663451,4.332,2305.6,2304.3,2.57040136]
[1769960663652,4.332,2305.6,2304.4,2.57040136]
[1769960663855,0.50261109,2305.3,2304.4,2.57040136]
[1769960664052,4.332,2305.1,2304.2,2.57040136]
[1769960664253,0.50261109,2305.0,2303.9,6.48262582]
[1769960664545,0.50261109,2305.0,2303.9,2.57040136]
[1769960664751,0.50344288,2305.3,2304.0,2.57040136]
[1769960664951,0.50344288,2305.6,2304.2,2.57040136]
[1769960665253,0.50344288,2305.6,2304.3,2.57040136]
[1769960665454,4.332,2305.5,2304.4,2.57040136]
[1769960665650,4.332,2305.4,2304.4,2.57040136]
[1769960666063,4.332,2305.3,2304.4,2.57040136]
[1769960666357,4.332,2305.3,2304.3,2.57040136]
[1769960666554,4.332,2305.2,2304.3,2.57040136]
[1769960666756,4.332,2305.4,2304.5,2.57040136]
[1769960667254,4.332,2305.2,2304.5,2.57040136]
[1769960667456,4.332,2305.3,2304.5,2.57040136]
[1769960667656,4.332,2305.4,2304.5,2.57040136]
[1769960667952,0.50370587,2305.3,2304.2,2.57040136]
[1769960668157,4.83570587,2305.3,2304.2,2.57040136]
[1769960668358,4.332,2305.1,2304.2,2.57040136]
[1769960668763,4.332,2304.7,2304.2,2.57040136]
[1769960669055,4.83573172,2305.0,2304.2,2.57040136]
[1769960669252,0.50373172,2305.0,2304.3,2.57040136]
[1769960669452,3.74540057,2304.7,2304.3,2.57040136]
[1769960669655,3.74540057,2304.5,2304.1,6.66240136]
[1769960669858,3.74540057,2304.6,2304.1,6.66240136]
[1769960670260,0.50373172,2305.0,2304.1,6.66240136]
[1769960670261,3.74540057,2304.4,2304.1,6.66240136]
[1769960670459,0.50373172,2304.6,2304.1,4.092]
[1769960670760,3.74540057,2304.7,2304.1,4.092]
[1769960670958,4.24684728,2304.7,2304.1,4.092]
[1769960671159,3.74540057,2304.2,2304.1,4.092]
[1769960671360,0.50144671,2304.6,2304.1,4.092]
[1769960671555,0.45718872,2304.7,2303.5,0.47175842]
[1769960671761,0.45718872,2305.6,2303.5,0.47175842]
[1769960671958,0.45718872,2305.6,2303.7,0.47175842]
[1769960672262,0.45718872,2305.6,2303.9,0.47175842]
[1769960672763,0.45718872,2305.6,2303.8,4.103]
[1769960673450,0.45718872,2305.6,2303.6,5.61494329]
[1769960673451,0.45718872,2305.6,2303.6,5.14318487]
[1769960673655,0.45718872,2305.3,2303.2,0.00561378]
[1769960673854,0.45718872,2305.1,2303.2,0.00561378]
[1769960674856,0.45718872,2305.1,2303.3,0.47175842]
[1769960675056,0.45718872,2305.1,2303.2,0.00561378]
[1769960675057,0.45718872,2304.7,2303.2,0.00561378]
[1769960675666,0.45718872,2304.7,2303.2,0.4773722]
[1769960675861,0.45718872,2304.7,2303.2,5.62055707]
[1769960676065,0.45718872,2304.7,2303.3,0.47175842]
[1769960676260,0.45718872,2305.0,2303.3,0.47175842]
[1769960676459,0.45718872,2305.0,2303.5,0.47175842]
[1769960678875,2.71243935,2304.0,2302.2,3.78630832]
[1769960679058,2.71243935,2303.2,2301.3,0.5024333]
[1769960679365,36.41237923,2303.9,2301.4,16.31310155]
[1769960679664,2.4201379,2303.1,2301.4,0.5024333]
[1769960679868,3.62366228,2303.0,2301.4,16.31632668]
[1769960680162,2.4201379,2303.2,2301.5,0.5024333]
[1769960680363,3.61589904,2303.1,2301.5,0.5024333]
[1769960680565,3.61589904,2303.0,2301.6,15.81066825]
[1769960680759,0.00948495,2302.8,2301.6,15.81066825]
[1769960680964,0.00948495,2302.8,2301.4,0.00322513]
[1769960681160,0.00948495,2302.8,2301.4,16.3115842]
[1769960682466,0.00948495,2302.8,2301.4,0.50091595]
[1769960682666,0.00948495,2302.8,2301.5,0.49769082]
[1769960683067,0.00948495,2302.8,2301.6,15.81066825]
[1769960683568,0.00948495,2302.8,2301.7,0.49600844]
[1769960685065,0.00948495,2302.8,2301.7,15.81066825]
[1769960685265,0.00948495,2302.8,2301.4,0.00322513]
[1769960685467,0.00948495,2302.8,2301.5,0.4923145]
[1769960685771,0.00948495,2302.8,2300.9,0.4923145]
[1769960685959,0.00948495,2302.8,2301.0,0.4923145]
[1769960686465,0.00948495,2302.8,2301.2,0.4923145]
[1769960686872,0.00948495,2302.8,2301.3,16.30287861]
[1769960687071,0.00948495,2302.8,2301.3,0.49221036]
[1769960687270,0.00948495,2302.8,2301.4,0.49221036]
[1769960687468,0.00948495,2302.8,2301.1,0.49221036]
[1769960687668,0.00948495,2302.8,2301.1,15.81066825]
[1769960688166,0.02125767,2302.4,2299.8,0.49447488]
[1769960688366,0.02125767,2302.4,2300.3,0.49447488]
[1769960688767,0.02125767,2302.4,2300.7,0.48934871]
[1769960688967,0.02698096,2302.0,2299.9,0.48934871]
[1769960689268,0.02207154,2301.9,2299.9,0.48934871]
[1769960689472,0.02207154,2301.9,2300.1,0.49180342]
[1769960689773,0.02207154,2301.9,2299.3,0.49180342]
[1769960690077,0.02512021,2301.9,2299.4,0.49180342]
[1769960690465,0.02512021,2301.9,2299.6,0.49180342]
[1769960690971,0.02512021,2301.9,2299.7,16.30124119]
[1769960691269,0.02512021,2301.9,2299.7,0.49057294]
[1769960691573,0.02512021,2301.9,2299.9,0.49057294]
[1769960691967,0.02512021,2301.9,2300.0,16.30124119]
[1769960692167,0.02512021,2301.9,2300.0,0.49057294]
[1769960692369,0.02453251,2301.7,2300.2,0.49057294]
[1769960692765,0.02453251,2301.7,2300.3,15.81066825]
[1769960693879,0.02453251,2301.7,2300.4,0.49065228]
[1769960694084,0.02453251,2301.7,2300.5,16.30132053]
[1769960694275,0.02453251,2301.7,2300.5,0.49065228]
[1769960694473,0.00304867,2301.9,2300.7,0.49065228]
[1769960694879,0.02437383,2302.5,2300.2,4.091]
[1769960694880,2.71243935,2302.8,2301.3,0.49075582]
[1769960695177,0.02416674,2302.9,2301.4,0.49075582]
[1769960695480,0.02416674,2302.9,2301.7,0.49075582]
[1769960695679,0.02416674,2302.9,2301.0,0.49075582]
[1769960695880,0.02416674,2302.9,2301.6,0.49075582]
[1769960696082,0.02928604,2302.9,2301.8,13.51155582]
[1769960696383,0.02928604,2302.9,2301.7,15.81066825]
[1769960697586,0.02928604,2302.9,2301.7,16.30227117]
[1769960698779,0.02928604,2302.9,2301.7,16.30057341]
[1769960699281,0.02928604,2302.9,2301.7,29.32137341]
[1769960699781,0.02928604,2302.9,2301.8,0.48990516]
[1769960700086,0.02928604,2302.9,2301.8,13.51070516]
[1769960700287,0.0051193,2302.9,2301.9,16.30057341]
[1769960700784,0.0051193,2302.9,2302.0,0.48934257]
[1769960700980,7.09745334,2303.2,2301.9,16.31350744]
[1769960701180,7.09745334,2303.2,2302.0,0.50283919]
[1769960701377,7.09745334,2303.2,2301.9,15.81066825]
[1769960701378,2.4201379,2303.8,2302.2,0.50283919]
[1769960701578,3.912,2303.6,2302.3,15.81066825]
[1769960701786,3.62025329,2303.5,2301.8,0.50283919]
[1769960701980,0.00556375,2303.5,2301.8,2.55]
[1769960702288,9.1701379,2304.6,2302.8,0.50283919]
[1769960702484,6.04668758,2304.5,2302.8,0.50283919]
[1769960702782,2.4201379,2304.2,2302.8,15.81066825]
[1769960702988,3.912,2304.3,2302.8,16.31525407]
[1769960703292,0.25738674,2304.0,2302.5,15.81066825]
[1769960703483,0.25738674,2303.8,2301.9,15.81066825]
[1769960703787,0.60385871,2304.2,2301.9,15.81066825]
[1769960703982,0.34647197,2304.2,2302.6,12.98868745]
[1769960704185,0.00497506,2304.3,2302.6,12.98868745]
[1769960704380,0.00497506,2304.3,2303.5,12.98868745]
[1769960704580,0.34971426,2305.1,2302.9,4.095]
[1769960704792,7.01370612,2305.4,2303.5,12.98868745]
[1769960704982,3.63664203,2305.3,2303.8,12.98868745]
[1769960705186,7.01370612,2305.4,2303.5,12.98868745]
[1769960705484,7.01370612,2305.4,2303.0,15.81066825]
[1769960705485,6.755,2305.4,2304.2,0.47849125]
[1769960705795,3.9151178,2305.4,2304.2,0.48292002]
[1769960706090,3.9151178,2305.4,2304.7,13.4671787]
[1769960706287,0.25870612,2305.3,2304.3,15.81066825]
[1769960706490,3.9151178,2305.4,2304.3,16.2891595]
[1769960706693,0.2234832,2305.3,2304.3,15.81066825]
[1769960706890,0.2234832,2305.3,2302.9,4.095]
[1769960706891,0.2234832,2305.1,2303.6,0.47849125]
[1769960707291,0.2234832,2305.1,2303.7,16.2652231]
[1769960707492,0.2234832,2305.1,2303.7,0.45455485]
[1769960707793,2.6402517,2305.4,2303.9,0.45455485]
[1769960707996,0.0031178,2305.4,2304.0,0.45455485]
[1769960708188,0.0031178,2305.4,2304.2,0.45455485]
[1769960708390,0.0031178,2305.4,2304.6,0.45455485]
[1769960708593,5.4821339,2306.2,2305.1,0.45455485]
[1769960708788,3.63991542,2306.1,2305.1,0.45455485]